[Event "DVM U10 2024"]
[Site "Duesseldorf"]
[Date "2024.12.27"]
[Round "1"]
[White "Kinateder, Vitus"]
[Black "Seitov, Adela"]
[Result "1/2-1/2"]
[ECO "C56"]
[WhiteElo "1605"]
[BlackElo "911"]
[Annotator "NA RC"]
[PlyCount "131"]
[EventDate "2024.12.23"]
[EventType "team-tourn"]
[EventRounds "7"]
[EventCountry "GER"]
[SourceTitle "playchess.com"]
[Source "ChessBase"]
[SourceQuality "1"]
[TimeControl "3300+5"]

1. e4 {[%emt 0:00:01]} e5 {[%emt 0:00:05]} 2. Nf3 {[%emt 0:00:03]} Nc6 {[%emt 0:00:05]} 3. d4 {[%emt 0:00:04]} exd4 {[%emt 0:01:10]} 4. Bc4 {[%emt 0:00:12]} Nf6 {[%emt 0:00:35]} 5. O-O {[%emt 0:00:06]} Nxe4 {[%emt 0:01:00]} 6. Re1 {[%emt 0:00:07]} d5 {[%emt 0:00:19]} 7. Bxd5 {[%emt 0:00:06]} Qxd5 {[%emt 0:00:12]} 8. Nc3 {[%emt 0:00:06]} Qh5 {[%emt 0:01:03]} 9. Rxe4+ {[%emt 0:00:10]} Be6 {[%emt 0:00:26]} 10. Nxd4 {[%emt 0:00:10]} Qxd1+ {[%emt 0:01:02]} 11. Nxd1 {[%emt 0:00:05]} Bd6 {[%emt 0:00:26]} 12. Nxe6 {[%emt 0:00:08]} fxe6 {[%emt 0:00:11]} 13. Rxe6+ {[%emt 0:00:05]} Be7 {[%emt 0:00:22]} 14. Nc3 {[%emt 0:00:16]} O-O {[%emt 0:00:15]} 15. Re1 {[%emt 0:00:16]} Bc5 {[%emt 0:00:09]} 16. Be3 {[%emt 0:00:10]} Bb4 {[%emt 0:01:14]} 17. a3 {[%emt 0:00:27]} Bxc3 {[%emt 0:00:08]} 18. bxc3 {[%emt 0:00:05]} Rfe8 {[%emt 0:00:38]} 19. Bf4 {[%emt 0:00:23]} Rxe1+ {[%emt 0:00:55]} 20. Rxe1 {[%emt 0:00:07]} Rc8 {[%emt 0:02:34]} 21. h3 {[%emt 0:00:20]} Rd8 {[%emt 0:00:21]} 22. Bxc7 {[%emt 0:00:10]} Rd7 {[%emt 0:00:39]} 23. Bf4 {[%emt 0:00:15]} Kf7 {[%emt 0:01:18]} 24. Kh2 {[%emt 0:00:16]} Kf6 {[%emt 0:00:21]} 25. Kg3 {[%emt 0:00:09]} g5 {[%emt 0:00:49]} 26. Bc1 {[%emt 0:00:14]} h5 {[%emt 0:01:26]} 27. f4 {[%emt 0:00:07]} h4+ {[%emt 0:00:31]} 28. Kg4 {[%emt 0:00:17]} gxf4 {[%emt 0:07:14]} 29. Bxf4 {[%emt 0:00:35]} Rg7+ {[%emt 0:00:50]} 30. Kf3 {[%emt 0:00:32]} Kf5 {[%emt 0:02:01]} 31. Rg1 {[%emt 0:00:40]} Ke6 {[%emt 0:01:04]} 32. g3 {[%emt 0:00:16]} hxg3 {[%emt 0:00:23]} 33. Rxg3 {[%emt 0:00:07]} Rd7 {[%emt 0:01:05]} 34. Rg6+ {[%emt 0:00:18]} Kf5 {[%emt 0:00:12]} 35. Rd6 {[%emt 0:00:11]} Re7 {[%emt 0:00:47]} 36. h4 {[%emt 0:00:22]} Re1 {[%emt 0:00:20]} 37. Bd2 {[%emt 0:00:39]} Ne5+ {[%emt 0:01:07]} 38. Kg3 {[%emt 0:01:14]} Rg1+ {[%emt 0:00:24]} 39. Kf2 {[%emt 0:01:23]} Rh1 {[%emt 0:00:33]} 40. Kg3 {[%emt 0:00:06]} Rg1+ {[%emt 0:00:13]} 41. Kf2 {[%emt 0:00:14]} Rh1 {[%emt 0:00:16]} 42. Rh6 {[%emt 0:00:18]} Ng4+ {[%emt 0:00:29]} 43. Kg2 {[%emt 0:00:12]} Rh2+ {[%emt 0:00:26]} 44. Kg3 {[%emt 0:00:25]} Rxd2 {[%emt 0:00:18]} 45. Rh7 {[%emt 0:00:11]} Rxc2 {[%emt 0:01:05]} 46. Rxb7 {[%emt 0:00:12]} Rxc3+ {[%emt 0:00:13]} 47. Kg2 {[%emt 0:00:16]} Rxa3 {[%emt 0:00:15]} 48. h5 {[%emt 0:00:09]} Kg5 {[%emt 0:00:44]} 49. Rh7 {[%emt 0:00:09]} a5 {[%emt 0:00:37]} 50. Kf1 {[%emt 0:00:12]} Rb3 {[%emt 0:00:29]} 51. Ra7 {[%emt 0:00:09]} Kxh5 {[%emt 0:00:22]} 52. Rxa5+ {[%emt 0:00:06]} Kh4 {[%emt 0:00:22]} 53. Kg2 {[%emt 0:00:15]} Rg3+ {[%emt 0:00:13]} 54. Kf1 {[%emt 0:00:26]} Rf3+ {[%emt 0:00:44]} 55. Ke2 {[%emt 0:00:17]} Rf2+ {[%emt 0:00:21]} 56. Kd3 {[%emt 0:00:08]} Rf3+ {[%emt 0:00:29]} 57. Ke4 {[%emt 0:00:10]} Kg3 {[%emt 0:00:15]} 58. Rg5 {[%emt 0:00:21]} Rf4+ {[%emt 0:00:52]} 59. Kd5 {[%emt 0:00:21]} Ra4 {[%emt 0:00:30]} 60. Ke6 {[%emt 0:00:16]} Ra6+ {[%emt 0:00:34]} 61. Kd7 {[%emt 0:00:19]} Kf4 {[%emt 0:00:24]} 62. Rb5 {[%emt 0:00:09]} Ne5+ {[%emt 0:00:28]} 63. Kc7 {[%emt 0:00:13]} Rc6+ {[%emt 0:00:40]} 64. Kb7 {[%emt 0:00:08]} Kf5 {[%emt 0:00:15]} 65. Rxe5+ {[%emt 0:00:08]} Kxe5 {[%emt 0:00:40]} 66. Kxc6 {[%emt 0:00:09]} 1/2-1/2

[Event "DVM U10 2024"]
[Site "Duesseldorf"]
[Date "2024.12.27"]
[Round "1"]
[White "Elli, Emeric"]
[Black "Ni, Wilhelm Zeyin"]
[Result "1/2-1/2"]
[ECO "B23"]
[WhiteElo "1574"]
[BlackElo "1611"]
[Annotator "NA RC"]
[PlyCount "70"]
[EventDate "2024.12.23"]
[EventType "team-tourn"]
[EventRounds "7"]
[EventCountry "GER"]
[SourceTitle "playchess.com"]
[Source "ChessBase"]
[SourceQuality "1"]
[TimeControl "3300+5"]

1. e4 {[%emt 0:00:01]} c5 {[%emt 0:00:13]} 2. Nc3 {[%emt 0:00:07]} d6 {[%emt 0:01:10]} 3. d3 {[%emt 0:01:24]} Nf6 {[%emt 0:00:39]} 4. Be3 {[%emt 0:00:38]} Nc6 {[%emt 0:00:55]} 5. h3 {[%emt 0:01:26]} g6 {[%emt 0:02:49]} 6. Nf3 {[%emt 0:00:56]} Bg7 {[%emt 0:00:58]} 7. g3 {[%emt 0:00:46]} O-O {[%emt 0:00:35]} 8. Bg2 {[%emt 0:00:19]} e6 {[%emt 0:08:43]} 9. O-O {[%emt 0:00:30]} b6 {[%emt 0:00:59]} 10. Qd2 {[%emt 0:01:35]} d5 {[%emt 0:03:32]} 11. Bh6 {[%emt 0:00:44]} Bb7 {[%emt 0:04:13]} 12. e5 {[%emt 0:02:38]} Nd7 {[%emt 0:00:57]} 13. Bxg7 {[%emt 0:01:17]} Kxg7 {[%emt 0:00:08]} 14. Rae1 {[%emt 0:00:34]} Qb8 {[%emt 0:03:42]} 15. Qf4 {[%emt 0:01:30]} a6 {[%emt 0:00:44]} 16. Re2 {[%emt 0:02:36]} d4 {[%emt 0:02:10]} 17. Nd1 {[%emt 0:00:31]} Nb4 {[%emt 0:03:49]} 18. a3 {[%emt 0:01:23]} Nd5 {[%emt 0:00:15]} 19. Qd2 {[%emt 0:00:58]} Qc7 {[%emt 0:01:51]} 20. c4 {[%emt 0:03:17]} dxc3 {[%emt 0:01:34]} 21. Nxc3 {[%emt 0:00:00]} Rac8 {[%emt 0:01:08]} 22. Rfe1 {[%emt 0:00:00]} b5 {[%emt 0:00:34]} 23. Nd1 {[%emt 0:05:47]} N7b6 {[%emt 0:01:44]} 24. Ne3 {[%emt 0:01:37]} c4 {[%emt 0:00:56]} 25. Ra1 {[%emt 0:03:25]} Nxe3 {[%emt 0:00:44]} 26. Rxe3 {[%emt 0:01:42]} Nd5 {[%emt 0:00:32]} 27. Ree1 {[%emt 0:00:48]} cxd3 {[%emt 0:00:21]} 28. Qxd3 {[%emt 0:00:33]} Qc2 {[%emt 0:00:26]} 29. Qxc2 {[%emt 0:00:21]} Rxc2 {[%emt 0:00:10]} 30. Rab1 {[%emt 0:00:23]} Rfc8 {[%emt 0:00:32]} 31. Nd4 {[%emt 0:00:54]} Rd2 {[%emt 0:00:36]} 32. Nf3 {[%emt 0:00:40]} Rd3 {[%emt 0:00:26]} 33. Rec1 {[%emt 0:00:47]} Rxc1+ {[%emt 0:00:33]} 34. Rxc1 {[%emt 0:00:10]} Nb6 {[%emt 0:00:28]} 35. Ne1 {[%emt 0:00:29]} Rd7 {[%emt 0:00:26]} 1/2-1/2

[Event "DVM U10 2024"]
[Site "Duesseldorf"]
[Date "2024.12.27"]
[Round "1"]
[White "Wessels, Keke"]
[Black "Luible, Sebastian"]
[Result "1/2-1/2"]
[ECO "D00"]
[WhiteElo "1568"]
[BlackElo "1104"]
[Annotator "NA RC"]
[PlyCount "58"]
[EventDate "2024.12.23"]
[EventType "team-tourn"]
[EventRounds "7"]
[EventCountry "GER"]
[SourceTitle "playchess.com"]
[Source "ChessBase"]
[SourceQuality "1"]
[TimeControl "3300+5"]

1. d4 {[%emt 0:00:04]} d5 {[%emt 0:00:06]} 2. Nc3 {[%emt 0:00:12]} e6 {[%emt 0:00:15]} 3. Bf4 {[%emt 0:00:21]} Nf6 {[%emt 0:00:16]} 4. Nb5 {[%emt 0:00:26]} Na6 {[%emt 0:01:34]} 5. e3 {[%emt 0:00:11]} c6 {[%emt 0:01:23]} 6. Nc3 {[%emt 0:01:15]} Bd6 {[%emt 0:02:37]} 7. Bxa6 {[%emt 0:01:58]} bxa6 {[%emt 0:03:33]} 8. Nge2 {[%emt 0:01:07]} O-O {[%emt 0:01:59]} 9. O-O {[%emt 0:02:04]} a5 {[%emt 0:02:45]} 10. Qd3 {[%emt 0:01:54]} Bxf4 {[%emt 0:03:41]} 11. Nxf4 {[%emt 0:00:56]} Qb6 {[%emt 0:01:18]} 12. Na4 {[%emt 0:06:28]} Ba6 {[%emt 0:06:57]} 13. Nxb6 {[%emt 0:02:58]} Bxd3 {[%emt 0:00:13]} 14. Nxa8 {[%emt 0:00:31]} Bxf1 {[%emt 0:02:02]} 15. Kxf1 {[%emt 0:00:25]} Rxa8 {[%emt 0:00:12]} 16. f3 {[%emt 0:00:38]} h6 {[%emt 0:00:39]} 17. Nd3 {[%emt 0:02:18]} Rb8 {[%emt 0:00:27]} 18. Rb1 {[%emt 0:01:28]} Nd7 {[%emt 0:03:33]} 19. a4 {[%emt 0:01:45]} f6 {[%emt 0:02:19]} 20. e4 {[%emt 0:00:49]} Nb6 {[%emt 0:01:06]} 21. b3 {[%emt 0:02:24]} dxe4 {[%emt 0:03:28]} 22. fxe4 {[%emt 0:00:54]} Nc4 {[%emt 0:02:58]} 23. Ke2 {[%emt 0:00:56]} Nd6 {[%emt 0:02:37]} 24. Nc5 {[%emt 0:01:25]} Kf7 {[%emt 0:01:00]} 25. Kd3 {[%emt 0:01:13]} Nb7 {[%emt 0:02:21]} 26. Kc4 {[%emt 0:03:13]} Nd6+ {[%emt 0:00:26]} 27. Kd3 {[%emt 0:00:24]} Nb7 {[%emt 0:00:23]} 28. Na6 {[%emt 0:00:55]} Rd8 {[%emt 0:00:26]} 29. Ke3 {[%emt 0:03:02]} f5 {[%emt 0:01:38]} 1/2-1/2

[Event "DVM U10 2024"]
[Site "Duesseldorf"]
[Date "2024.12.27"]
[Round "1"]
[White "Nune, Likhith Siddharth"]
[Black "Zielke, Mika"]
[Result "0-1"]
[ECO "C44"]
[WhiteElo "1533"]
[BlackElo "1623"]
[Annotator "NA RC"]
[PlyCount "95"]
[EventDate "2024.12.23"]
[EventType "team-tourn"]
[EventRounds "7"]
[EventCountry "GER"]
[SourceTitle "playchess.com"]
[Source "ChessBase"]
[SourceQuality "1"]
[TimeControl "3300+5"]

1. e4 {[%emt 0:00:04]} e5 {[%emt 0:00:08]} 2. Nf3 {[%emt 0:00:05]} Nc6 {[%emt 0:00:08]} 3. d4 {[%emt 0:00:07]} exd4 {[%emt 0:00:18]} 4. c3 {[%emt 0:00:07]} d5 {[%emt 0:03:11]} 5. exd5 {[%emt 0:01:07]} Qxd5 {[%emt 0:01:26]} 6. cxd4 {[%emt 0:00:25]} Bg4 {[%emt 0:01:11]} 7. Nc3 {[%emt 0:01:05]} Bb4 {[%emt 0:01:01]} 8. Be2 {[%emt 0:01:33]} Bxf3 {[%emt 0:02:18]} 9. Bxf3 {[%emt 0:00:24]} Qc4 {[%emt 0:00:41]} 10. d5 {[%emt 0:03:12]} Bxc3+ {[%emt 0:05:11]} 11. bxc3 {[%emt 0:00:20]} Qxc3+ {[%emt 0:00:36]} 12. Bd2 {[%emt 0:00:11]} Qe5+ {[%emt 0:00:10]} 13. Be3 {[%emt 0:00:55]} Rd8 {[%emt 0:07:42]} 14. O-O {[%emt 0:01:41]} Nge7 {[%emt 0:02:48]} 15. Re1 {[%emt 0:01:43]} O-O {[%emt 0:00:29]} 16. Qa4 {[%emt 0:01:29]} Nxd5 {[%emt 0:01:38]} 17. Bxd5 {[%emt 0:02:33]} Qxd5 {[%emt 0:01:39]} 18. Rad1 {[%emt 0:01:38]} Qa5 {[%emt 0:01:13]} 19. Qxa5 {[%emt 0:02:57]} Nxa5 {[%emt 0:00:08]} 20. Bd2 {[%emt 0:01:13]} Nc6 {[%emt 0:01:06]} 21. Bc1 {[%emt 0:00:30]} h6 {[%emt 0:00:48]} 22. Rxd8 {[%emt 0:00:38]} Rxd8 {[%emt 0:00:16]} 23. g3 {[%emt 0:00:13]} Kh7 {[%emt 0:00:39]} 24. Kg2 {[%emt 0:00:12]} Kg6 {[%emt 0:00:10]} 25. f4 {[%emt 0:00:56]} Rd3 {[%emt 0:01:16]} 26. h4 {[%emt 0:02:00]} Rc3 {[%emt 0:01:09]} 27. Bd2 {[%emt 0:01:18]} Rc2 {[%emt 0:00:18]} 28. Rd1 {[%emt 0:00:16]} Rxa2 {[%emt 0:00:22]} 29. Kh3 {[%emt 0:00:17]} a5 {[%emt 0:00:37]} 30. Bc3 {[%emt 0:02:09]} a4 {[%emt 0:00:46]} 31. Rb1 {[%emt 0:00:23]} b6 {[%emt 0:00:28]} 32. g4 {[%emt 0:02:21]} Ra3 {[%emt 0:00:26]} 33. f5+ {[%emt 0:00:37]} Kh7 {[%emt 0:00:10]} 34. Rc1 {[%emt 0:01:14]} Nd4 {[%emt 0:00:54]} 35. Kg2 {[%emt 0:00:46]} Ne2 {[%emt 0:00:20]} 36. Bb2 {[%emt 0:00:39]} Nxc1 {[%emt 0:00:33]} 37. Bxa3 {[%emt 0:00:15]} Nb3 {[%emt 0:00:17]} 38. Kg3 {[%emt 0:00:40]} c5 {[%emt 0:00:34]} 39. Kf4 {[%emt 0:00:39]} b5 {[%emt 0:00:22]} 40. Ke3 {[%emt 0:00:31]} b4 {[%emt 0:00:07]} 41. Bb2 {[%emt 0:00:27]} a3 {[%emt 0:00:10]} 42. Be5 {[%emt 0:00:49]} f6 {[%emt 0:00:23]} 43. Bd6 {[%emt 0:00:52]} a2 {[%emt 0:00:13]} 44. Ke4 {[%emt 0:00:56]} a1=Q {[%emt 0:00:16]} 45. Bxc5 {[%emt 0:00:45]} Qe5+ {[%emt 0:00:19]} 46. Kd3 {[%emt 0:00:23]} Nxc5+ {[%emt 0:00:13]} 47. Kc2 {[%emt 0:00:26]} Qc3+ {[%emt 0:00:17]} 48. Kd1 {[%emt 0:00:10]} 0-1

[Event "DVM U10 2024"]
[Site "Duesseldorf"]
[Date "2024.12.27"]
[Round "1"]
[White "Schonlau, Leopold"]
[Black "Mayer, Frederik Eliot"]
[Result "1-0"]
[ECO "C57"]
[WhiteElo "1533"]
[BlackElo "1128"]
[Annotator "NA RC"]
[PlyCount "55"]
[EventDate "2024.12.23"]
[EventType "team-tourn"]
[EventRounds "7"]
[EventCountry "GER"]
[SourceTitle "playchess.com"]
[Source "ChessBase"]
[SourceQuality "1"]
[TimeControl "3300+5"]

1. e4 {[%emt 0:00:03]} e5 {[%emt 0:00:01]} 2. Nf3 {[%emt 0:00:06]} Nc6 {[%emt 0:00:08]} 3. Bc4 {[%emt 0:00:06]} Nf6 {[%emt 0:00:10]} 4. Ng5 {[%emt 0:00:21]} d5 {[%emt 0:00:19]} 5. exd5 {[%emt 0:00:09]} Nxd5 {[%emt 0:00:09]} 6. Nxf7 {[%emt 0:01:00]} Kxf7 {[%emt 0:01:20]} 7. Qf3+ {[%emt 0:00:01]} Qf6 {[%emt 0:01:42]} 8. Bxd5+ {[%emt 0:00:58]} Ke7 {[%emt 0:00:33]} 9. Qg3 {[%emt 0:07:20]} Bd7 {[%emt 0:00:51]} 10. d3 {[%emt 0:00:16]} h6 {[%emt 0:00:16]} 11. Nc3 {[%emt 0:00:34]} Rb8 {[%emt 0:02:41]} 12. Ne4 {[%emt 0:00:27]} Qf5 {[%emt 0:00:51]} 13. Be3 {[%emt 0:03:30]} b6 {[%emt 0:00:31]} 14. O-O {[%emt 0:03:48]} Rc8 {[%emt 0:00:47]} 15. f4 {[%emt 0:00:52]} Nd4 {[%emt 0:01:15]} 16. Bxd4 {[%emt 0:01:44]} exd4 {[%emt 0:01:35]} 17. Bb3 {[%emt 0:00:12]} Kd8 {[%emt 0:02:34]} 18. Rae1 {[%emt 0:04:02]} c6 {[%emt 0:01:21]} 19. Qf2 {[%emt 0:00:06]} c5 {[%emt 0:00:05]} 20. Qg3 {[%emt 0:00:05]} Rc6 {[%emt 0:00:05]} 21. Nd2 {[%emt 0:04:20]} Bd6 {[%emt 0:11:28]} 22. Qh4+ {[%emt 0:00:05]} Kc7 23. Nc4 {[%emt 0:00:05]} h5 {[%emt 0:00:10]} 24. Ba4 {[%emt 0:00:05]} Qd5 {[%emt 0:00:05]} 25. Bxc6 {[%emt 0:00:05]} Bxc6 {[%emt 0:00:05]} 26. Qg5 {[%emt 0:00:05]} Rh6 {[%emt 0:00:05]} 27. Nxd6 {[%emt 0:00:05]} Kxd6 {[%emt 0:00:05]} 28. Qe7# {[%emt 0:00:05]} 1-0

[Event "DVM U10 2024"]
[Site "Duesseldorf"]
[Date "2024.12.27"]
[Round "1"]
[White "El-Issa, Erik"]
[Black "Sauer, Ben"]
[Result "1-0"]
[ECO "C02"]
[WhiteElo "1530"]
[BlackElo "1645"]
[Annotator "NA RC"]
[PlyCount "83"]
[EventDate "2024.12.23"]
[EventType "team-tourn"]
[EventRounds "7"]
[EventCountry "GER"]
[SourceTitle "playchess.com"]
[Source "ChessBase"]
[SourceQuality "1"]
[TimeControl "3300+5"]

1. e4 {[%emt 0:00:04]} c5 {[%emt 0:00:06]} 2. c3 {[%emt 0:00:06]} e6 {[%emt 0:00:08]} 3. d4 {[%emt 0:00:12]} d5 {[%emt 0:00:08]} 4. e5 {[%emt 0:00:43]} Nc6 {[%emt 0:00:42]} 5. Nf3 {[%emt 0:00:21]} Qb6 {[%emt 0:00:41]} 6. Qb3 {[%emt 0:02:17]} Qxb3 {[%emt 0:01:06]} 7. axb3 {[%emt 0:00:08]} cxd4 {[%emt 0:00:34]} 8. cxd4 {[%emt 0:00:29]} Bd7 {[%emt 0:03:18]} 9. Bb5 {[%emt 0:01:25]} a6 {[%emt 0:02:19]} 10. O-O {[%emt 0:00:25]} Rc8 {[%emt 0:07:29]} 11. Be2 {[%emt 0:01:14]} Be7 {[%emt 0:03:18]} 12. Be3 {[%emt 0:01:26]} f6 {[%emt 0:07:14]} 13. Nc3 {[%emt 0:02:11]} fxe5 {[%emt 0:01:33]} 14. Nxe5 {[%emt 0:00:11]} Nxe5 {[%emt 0:03:31]} 15. dxe5 {[%emt 0:00:10]} Bc5 {[%emt 0:03:01]} 16. Bxc5 {[%emt 0:02:15]} Rxc5 {[%emt 0:00:08]} 17. Rfd1 {[%emt 0:02:43]} Ne7 {[%emt 0:01:43]} 18. f4 {[%emt 0:01:49]} O-O {[%emt 0:01:41]} 19. g3 {[%emt 0:00:57]} Nf5 {[%emt 0:01:20]} 20. b4 {[%emt 0:00:49]} Rc7 {[%emt 0:00:36]} 21. Bd3 {[%emt 0:02:22]} g6 {[%emt 0:01:05]} 22. Kf2 {[%emt 0:00:47]} Rd8 {[%emt 0:01:09]} 23. Bxf5 {[%emt 0:00:41]} gxf5 {[%emt 0:00:11]} 24. Rd2 {[%emt 0:03:01]} Rdc8 {[%emt 0:01:04]} 25. Rad1 {[%emt 0:01:03]} Rc4 {[%emt 0:01:15]} 26. Rd4 {[%emt 0:00:26]} Kf7 {[%emt 0:01:19]} 27. h3 {[%emt 0:00:30]} h5 {[%emt 0:00:22]} 28. Kf3 {[%emt 0:00:36]} Ke7 {[%emt 0:00:54]} 29. g4 {[%emt 0:02:03]} hxg4+ {[%emt 0:00:32]} 30. hxg4 {[%emt 0:00:02]} fxg4+ {[%emt 0:00:14]} 31. Kxg4 {[%emt 0:00:09]} Rg8+ {[%emt 0:01:17]} 32. Kf3 {[%emt 0:00:10]} Rcc8 {[%emt 0:01:00]} 33. f5 {[%emt 0:00:55]} Rgf8 {[%emt 0:04:17]} 34. f6+ {[%emt 0:00:34]} Kf7 {[%emt 0:00:35]} 35. Rg1 {[%emt 0:00:44]} Rg8 {[%emt 0:00:13]} 36. Rdg4 {[%emt 0:00:44]} Rxg4 {[%emt 0:00:37]} 37. Rxg4 {[%emt 0:00:35]} Rg8 {[%emt 0:00:01]} 38. Rxg8 {[%emt 0:01:52]} Kxg8 {[%emt 0:00:02]} 39. Ne2 {[%emt 0:00:40]} Kf7 {[%emt 0:00:30]} 40. Nd4 {[%emt 0:00:32]} Bc6 {[%emt 0:00:30]} 41. Kg4 {[%emt 0:00:29]} Be8 {[%emt 0:00:23]} 42. Kg5 {[%emt 0:00:17]} 1-0

[Event "DVM U10 2024"]
[Site "Duesseldorf"]
[Date "2024.12.27"]
[Round "1"]
[White "Ragavendra Prasanna, Shyam Sundar"]
[Black "Pukshansky, Mikhail B"]
[Result "0-1"]
[ECO "A45"]
[WhiteElo "1524"]
[BlackElo "2405"]
[Annotator "TA"]
[PlyCount "116"]
[EventDate "2024.12.23"]
[EventType "team-tourn"]
[EventRounds "7"]
[EventCountry "GER"]
[SourceTitle "playchess.com"]
[Source "ChessBase"]
[SourceQuality "1"]
[TimeControl "3300+5"]

{[%evp 9,115,117,181,170,175,177,179,179,179,183,202,211,277,261,278,143,150,141,271,165,169,106,113,106,91,95,198,199,202,0,0,0,0,0,0,0,0,-311,-289,-366,-352,-344,-354,-339,-283,-310,-311,-315,-310,-1015,-351,-1407,-1395,-1366,-1332,-29962,-29963,-6466,-6225,-5347,-5243,-29979,-29980,-29984,-29985,-29987,-29988,-29988,-29989,-29989,-29990,-29988,-29989,-29988,-29989,-29989,-29989,-29989,-29988,-29988,-29989,-29989,-29990,-29990,-29991,-29991,-29992,-29992,-29993,-29993,-29993,-29993,-29994,-29994,-29994,-29994,-5306,-29994,-5297,-29995,-29996,-29996,-29997,-29997,-29997,-29998,-29999,-29999]} 1. d4 {[%emt 0:00:04][%cal Bd2d4,Bd4e5][%mdl 32]} Nf6 {[%emt 0:00:05]} 2. Bf4 {[%emt 0:00:07]} e5 {[%emt 0:00:11]} 3. dxe5 {[%emt 0:00:13]} Ne4 {[%emt 0:00:05]} 4. e3 {[%emt 0:00:32]} Qh4 {[%emt 0:00:10]} 5. g3 {[%emt 0:00:18]} Qd8 {[%emt 0:00:56]} (5... Qe7 $16) 6. Bg2 $18 {[%emt 0:00:38]} d5 {[%emt 0:01:12]} 7. exd6 {[%emt 0:00:44]} Nxd6 {[%emt 0:00:05]} 8. Nc3 {[%emt 0:00:05]} Nc6 {[%emt 0:00:35]} 9. Nf3 {[%emt 0:00:25]} Bg4 {[%emt 0:00:26][%cal Bc8g4,Bg4h5,Bh5g6][%mdl 32]} 10. h3 {[%emt 0:00:35]} Bh5 {[%emt 0:00:17]} 11. g4 {[%emt 0:00:21]} Bg6 {[%emt 0:00:29]} 12. Ne5 {[%emt 0:01:59]} ({White should try} 12. Nd4 $18 Na5 13. Ndb5) 12... Nxe5 $16 {[%emt 0:00:26]} 13. Bxe5 {[%emt 0:00:11]} Be7 {[%emt 0:00:44]} (13... c6 $16 14. Qd4 f6) 14. Bxd6 {[%emt 0:01:11]} Bxd6 {[%emt 0:00:07] Black is weak on the light squares} 15. Bxb7 {[%emt 0:00:13]} (15. Qd4 $18 O-O 16. O-O-O (16. Bxb7 Rb8 $11)) 15... Rb8 {[%emt 0:00:30]} 16. Bc6+ {[%emt 0:00:21]} Kf8 {[%emt 0:00:21]} 17. Nb5 {[%emt 0:01:04]} Bc5 {[%emt 0:00:56] Dodges Qd4} (17... h5 $16) 18. Qxd8+ $18 {[%emt 0:00:55]} Rxd8 {[%emt 0:00:26]} 19. Nxc7 $2 {[%emt 0:00:52]} (19. c3 $18) 19... Rc8 $1 $11 {[%emt 0:00:12]} (19... Bxc2 20. Na6 Bb6 21. a3 $16) 20. O-O-O {[%emt 0:01:02]} Rxc7 {[%emt 0:00:14]} 21. Rd8+ {[%emt 0:00:17]} Ke7 {[%emt 0:00:11]} 22. Rxh8 {[%emt 0:00:18]} Rxc6 {[%emt 0:00:14]} 23. f4 $2 {[%emt 0:00:33][%mdl 8192]} (23. g5 $11) 23... Bxe3+ $19 {[%emt 0:01:39]} 24. Kb1 {[%emt 0:01:08] f5 would now be deadly.} Bxf4 {[%emt 0:00:00]} 25. Re1+ {[%emt 0:00:24]} Kf6 {[%emt 0:00:00]} 26. Re2 {[%emt 0:00:34]} Rd6 {[%emt 0:00:20][%cal Rd6d1]} 27. a3 {[%emt 0:00:31]} Kg5 {[%emt 0:00:48]} 28. Ra8 {[%emt 0:00:27]} a6 {[%emt 0:00:24]} 29. Rb8 $2 {[%emt 0:00:10]} (29. Rc8) 29... f6 $2 {[%emt 0:00:16]} (29... Rd1+ 30. Ka2 Bxb8) 30. b4 $2 {[%emt 0:01:26]} (30. Rb7) 30... Rd1+ {[%emt 0:00:15]} 31. Kb2 {[%emt 0:00:24]} Bxb8 {[%emt 0:00:16] A strong pair of Bishops.} 32. Re3 {[%emt 0:02:32]} Be5+ {[%emt 0:00:20]} 33. Kb3 {[%emt 0:00:21]} Bf7+ {[%emt 0:00:24]} 34. Ka4 {[%emt 0:00:11]} Kf4 {[%emt 0:00:14]} 35. Rb3 {[%emt 0:00:15]} Bxb3+ {[%emt 0:00:26]} 36. cxb3 {[%emt 0:00:23]} Rd3 {[%emt 0:00:18]} 37. b5 {[%emt 0:00:54]} axb5+ {[%emt 0:00:08]} 38. Kb4 {[%emt 0:00:33]} Rxh3 {[%emt 0:00:16]} 39. a4 {[%emt 0:00:07]} bxa4 {[%emt 0:00:14]} 40. bxa4 {[%emt 0:00:23]} Kxg4 {[%emt 0:00:15]} 41. a5 {[%emt 0:00:12]} Bb2 {[%emt 0:00:13]} 42. Kb5 {[%emt 0:00:14]} Rh5+ {[%emt 0:00:35]} 43. Kb6 {[%emt 0:00:03]} Rxa5 {[%emt 0:00:12]} 44. Kxa5 {[%emt 0:00:06]} h5 {[%emt 0:00:14]} 45. Kb4 {[%emt 0:00:06]} h4 {[%emt 0:00:16]} 46. Kb3 {[%emt 0:00:31] [#]} h3 $1 {[%emt 0:00:13]} 47. Kxb2 {[%emt 0:00:08] KP-KP. Black is 3 pawns up.} (47. Ka4 h2) 47... h2 {[%emt 0:00:08]} 48. Kc2 {[%emt 0:00:04]} h1=Q {[%emt 0:00:21]} 49. Kd2 {[%emt 0:00:07]} Qf3 {[%emt 0:00:30]} 50. Kc2 {[%emt 0:00:09]} Qe3 {[%emt 0:00:08]} 51. Kb2 {[%emt 0:00:06]} Qd3 {[%emt 0:00:22]} 52. Ka2 {[%emt 0:00:09]} Qc3 {[%emt 0:00:06]} 53. Kb1 {[%emt 0:00:08]} Qd2 {[%emt 0:00:08]} 54. Ka1 {[%emt 0:00:05]} Kf3 {[%emt 0:00:13]} 55. Kb1 {[%emt 0:00:05]} Ke3 {[%emt 0:00:12]} 56. Ka1 {[%emt 0:00:05]} Kd3 {[%emt 0:00:18]} 57. Kb1 {[%emt 0:00:06]} Kc3 {[%emt 0:00:21][%csl Gc3][%cal Rd2b2]} 58. Ka1 {[%emt 0:00:11]} Qb2# {[%emt 0:00:02]} 0-1

[Event "DVM U10 2024"]
[Site "Duesseldorf"]
[Date "2024.12.27"]
[Round "1"]
[White "Bentele, Otto"]
[Black "Bienbeck, Matthis"]
[Result "0-1"]
[ECO "B34"]
[WhiteElo "1522"]
[BlackElo "1490"]
[Annotator "NA RC"]
[PlyCount "31"]
[EventDate "2024.12.23"]
[EventType "team-tourn"]
[EventRounds "7"]
[EventCountry "GER"]
[SourceTitle "playchess.com"]
[Source "ChessBase"]
[SourceQuality "1"]
[TimeControl "3300+5"]

1. e4 {[%emt 0:00:03]} c5 {[%emt 0:00:05]} 2. Nf3 {[%emt 0:00:07]} Nc6 {[%emt 0:00:05]} 3. d4 {[%emt 0:00:09]} cxd4 {[%emt 0:00:08]} 4. Nxd4 {[%emt 0:00:09]} g6 {[%emt 0:00:06]} 5. Nc3 {[%emt 0:01:06]} Bg7 {[%emt 0:00:16]} 6. Nxc6 {[%emt 0:00:20]} bxc6 {[%emt 0:00:09]} 7. g3 {[%emt 0:01:41]} Nf6 {[%emt 0:01:09]} 8. Bg2 {[%emt 0:00:51]} Ba6 {[%emt 0:00:34]} 9. Ne2 {[%emt 0:00:35]} O-O {[%emt 0:03:15]} 10. O-O {[%emt 0:01:26]} Qc7 {[%emt 0:00:05]} 11. Re1 {[%emt 0:02:22]} Rad8 {[%emt 0:00:05]} 12. Nc3 {[%emt 0:00:05]} d6 {[%emt 0:00:05]} 13. f4 {[%emt 0:00:05]} Nd7 {[%emt 0:00:05]} 14. Bh3 {[%emt 0:00:05]} Nb6 {[%emt 0:00:05]} 15. Bg2 {[%emt 0:00:05]} Nc4 {[%emt 0:00:05]} 16. Bf1 {[%emt 0:00:05]} 0-1